fUSD/lending_fUSD_20250125
["ID","MTS","AMOUNT","RATE_DAILY","PERIOD"]
[350324236,1737795052230,-500.0,0.00016986,2]
[350324237,1737795052239,-571.54,0.00016986,2]
[350324238,1737795052248,-500.0,0.00016986,2]
[350324239,1737795052257,-503.08,0.00016986,2]
[350324240,1737795052267,-500.0,0.00016986,2]
[350324241,1737795052275,-500.0,0.00016986,2]
[350324242,1737795052285,-500.0,0.00016986,2]
[350324243,1737795052295,-224.38675882,0.00017022,2]
[350324244,1737795052303,-500.74795357,0.00017071,2]
[350324245,1737795052313,-1693.38452864,0.00017072,2]
[350324246,1737795052322,-500.0,0.00017109,2]
[350324247,1737795052332,-203.64737863,0.00017121,2]
[350324248,1737795052340,-500.0,0.00017122,2]
[350324249,1737795052355,-500.0,0.00017122,2]
[350324250,1737795052364,-500.0,0.00017122,2]
[350324251,1737795052374,-500.0,0.00017122,2]
[350324252,1737795052384,-500.0,0.00017122,2]
[350324253,1737795052393,-500.0,0.00017122,2]
[350324254,1737795052402,-500.0,0.00017122,2]
[350324255,1737795052412,-500.0,0.00017122,2]
[350324256,1737795052422,-500.0,0.00017122,2]
[350324257,1737795052432,-500.0,0.00017122,2]
[350324258,1737795052442,-526.97,0.00017122,2]
[350324259,1737795052451,-500.0,0.00017122,2]
[350324260,1737795052461,-500.0,0.00017122,2]
[350324261,1737795052470,-500.0,0.00017122,2]
[350324262,1737795052480,-565.78,0.00017122,2]
[350324263,1737795052490,-500.0,0.00017122,2]
[350324264,1737795052499,-500.0,0.00017122,2]
[350324265,1737795052508,-548.83,0.00017122,2]
[350324266,1737795052518,-500.0,0.00017122,2]
[350324267,1737795052528,-520.34865349,0.00017122,2]
[350324268,1737795052537,-536.55,0.00017122,2]
[350324269,1737795052547,-500.0,0.00017122,2]
[350324270,1737795052556,-500.0,0.00017122,2]
[350324271,1737795052566,-500.0,0.00017122,2]
[350324272,1737795052575,-500.0,0.00017122,2]
[350324273,1737795052585,-588.12,0.00017122,2]
[350324274,1737795052595,-501.98,0.00017122,2]
[350324275,1737795052606,-500.0,0.00017122,2]
[350324276,1737795052617,-500.0,0.00017122,2]
[350324277,1737795052626,-544.53,0.00017122,2]
[350324278,1737795052635,-500.0,0.00017122,2]
[350324279,1737795052645,-631.37,0.00017122,2]
[350324280,1737795052654,-500.0,0.00017122,2]
[350324281,1737795052664,-619.4,0.00017122,2]
[350324282,1737795052674,-1564.23,0.00017122,2]
[350324283,1737795052683,-889.15,0.00017122,2]
[350324284,1737795052693,-553.92,0.00017122,2]
[350324285,1737795052702,-1420.74,0.00017122,2]
[350324286,1737795052712,-500.0,0.00017122,2]
[350324287,1737795052721,-2302.84,0.00017122,2]
[350324288,1737795052731,-831.48,0.00017122,2]
[350324289,1737795052743,-500.0,0.00017122,2]
[350324290,1737795052752,-873.74,0.00017122,2]
[350324291,1737795052762,-500.0,0.00017122,2]
[350324292,1737795052771,-448.312197,0.00017122,2]
[350324293,1737795052782,-526.04,0.00017122,2]
[350324294,1737795052792,-1034.29,0.00017122,2]
[350324295,1737795052801,-1575.19,0.00017122,2]
[350324296,1737795052811,-500.0,0.00017122,2]
[350324297,1737795052957,-500.0,0.00017122,2]
[350324298,1737795052968,-768.52,0.00017122,2]
[350324299,1737795052978,-500.0,0.00017122,2]
[350324300,1737795052988,-3278.04,0.00017122,2]
[350324301,1737795052998,-510.85362135,0.00017122,2]
[350324302,1737795053008,-839.11,0.00017122,2]
[350324303,1737795053017,-500.0,0.00017122,2]
[350324304,1737795053027,-1919.23,0.00017122,2]
[350324305,1737795053036,-500.0,0.00017122,2]
[350324306,1737795053045,-546.38,0.00017122,2]
[350324307,1737795053055,-1731.81,0.00017122,2]
[350324308,1737795053064,-657.65,0.00017122,2]
[350324309,1737795053073,-500.0,0.00017122,2]
[350324310,1737795053083,-1725.71,0.00017122,2]
[350324311,1737795053092,-986.27,0.00017122,2]
[350324312,1737795053103,-500.0,0.00017122,2]
[350324313,1737795053112,-500.0,0.00017122,2]
[350324314,1737795053121,-500.0,0.00017122,2]
[350324315,1737795053131,-500.0,0.00017122,2]
[350324316,1737795053140,-500.0,0.00017122,2]
[350324317,1737795053149,-1517.97083062,0.00017122,2]
[350324318,1737795053336,-563.99916938,0.00017122,2]
[350324319,1737795053346,-1787.63230258,0.00017122,2]
[350324320,1737795053360,-47.04769742,0.00017122,2]
[350324321,1737795053369,-500.0,0.00017122,2]
[350324322,1737795053378,-500.0,0.00017122,2]
[350324323,1737795053387,-500.0,0.00017122,2]
[350324324,1737795053397,-359.95972758,0.00017122,2]
[350324325,1737795053420,-505.683028,0.00016985,2]
[350324326,1737795053429,-2340.84027242,0.00017122,2]
[350324327,1737795053438,-3504.71,0.00017122,2]
[350324328,1737795053447,-658.34,0.00017122,2]
[350324329,1737795053457,-3012.96031041,0.00017122,2]
[350324360,1737796145988,-153.0,0.00010137,2]
[350324361,1737796146013,-500.0,0.00010137,2]
[350324362,1737796146039,-305.24154511,0.00010137,2]
[350324363,1737796146065,-151.95,0.00010137,2]
[350324364,1737796156136,-172.23,0.00012288,2]
[350324365,1737796156164,-180.0,0.00012328,2]
[350324366,1737796156184,-191.73,0.00012329,2]
[350324367,1737796156204,-149.31390111,0.00012329,2]
[350324399,1737796232077,-213.60636115,0.0001324,2]
[350324400,1737796232086,-144.07377385,0.00013533,2]
[350324401,1737796232288,-972.17622615,0.00013533,2]
[350324402,1737796232298,-32.83339276,0.00015,2]
[350324403,1737796232393,-517.16660724,0.00015,2]
[350324404,1737796232403,-562.41917933,0.00015226,2]
[350324405,1737796232412,-485.93021658,0.00015326,2]
[350324483,1737796238278,-539.34332047,0.00015326,2]
[350324484,1737796238324,-2639.11750772,0.00015326,2]
[350324485,1737796238334,-1346.43,0.00015326,2]
[350324486,1737796238343,-424.41,0.00015334,2]
[350324487,1737796238352,-250.0,0.00015346,2]
[350324488,1737796238362,-1600.0,0.00015532,2]
[350324489,1737796238371,-4990.03,0.00015606,2]
[350324490,1737796238381,-250.0,0.00015676,2]
[350324491,1737796238390,-242.99,0.00015726,2]
[350324492,1737796238400,-1116.25,0.00015797,2]
[350324493,1737796238410,-155.25,0.00016066,2]
[350324494,1737796238420,-25.15091246,0.00016076,2]
[350324495,1737796238441,-130.09908754,0.00016076,2]
[350324496,1737796238451,-155.25,0.00016086,2]
[350324497,1737796238466,-155.25,0.00016096,2]
[350324498,1737796238483,-155.25,0.00016106,2]
[350324499,1737796238498,-155.25,0.00016116,2]
[350324500,1737796238507,-155.25,0.00016126,2]
[350324501,1737796238517,-155.25,0.00016136,2]
[350324502,1737796238527,-155.25,0.00016146,2]
[350324503,1737796238537,-221.72,0.00016166,2]
[350324504,1737796238547,-300.0,0.00016432,2]
[350324505,1737796238556,-1000.0,0.00016432,2]
[350324506,1737796238567,-721.7095681,0.00016474,2]
[350324507,1737796238576,-1890.23,0.00016518,2]
[350324508,1737796238586,-475.61470709,0.00016574,2]
[350324509,1737796238596,-436.04037157,0.00016574,2]
[350324510,1737796238608,-80.89093091,0.00016574,2]
[350324511,1737796238617,-185.69277268,0.00016574,2]
[350324512,1737796238629,-314.30722732,0.00016574,2]
[350324513,1737796238639,-183.90176368,0.00016574,2]
[350324514,1737796238651,-316.09823632,0.00016574,2]
[350324515,1737796238666,-500.0,0.00016574,2]
[350324516,1737796238676,-500.0,0.00016574,2]
[350324517,1737796238686,-500.0,0.00016574,2]
[350324518,1737796238695,-500.0,0.00016574,2]
[350324519,1737796238704,-500.0,0.00016574,2]
[350324520,1737796238713,-613.64662846,0.00016574,2]
[350324521,1737796238723,-321.85112274,0.00016574,2]
[350324522,1737796238733,-500.0,0.00016574,2]
[350324523,1737796238742,-500.0,0.00016574,2]
[350324524,1737796238751,-500.0,0.00016574,2]
[350324525,1737796238761,-500.0,0.00016574,2]
[350324526,1737796238770,-500.0,0.00016574,2]
[350324527,1737796238779,-500.0,0.00016574,2]
[350324528,1737796238788,-500.0,0.00016574,2]
[350324529,1737796238798,-500.0,0.00016574,2]
[350324530,1737796238809,-500.0,0.00016574,2]
[350324531,1737796238831,-500.0,0.00016574,2]
[350324532,1737796238856,-500.0,0.00016574,2]
[350324533,1737796238880,-500.0,0.00016574,2]
[350324534,1737796238910,-500.0,0.00016574,2]
[350324535,1737796238944,-500.0,0.00016574,2]
[350324536,1737796238966,-500.0,0.00016574,2]
[350324537,1737796238987,-412.56397371,0.00016574,2]
[350324538,1737796239008,-500.0,0.00016574,2]
[350324539,1737796239031,-500.0,0.00016574,2]
[350324540,1737796239054,-500.0,0.00016574,2]
[350324541,1737796239074,-500.0,0.00016574,2]
[350324542,1737796239096,-500.0,0.00016574,2]
[350324543,1737796239108,-500.0,0.00016574,2]
[350324544,1737796239118,-500.0,0.00016574,2]
[350324545,1737796239127,-500.0,0.00016574,2]
[350324546,1737796239136,-174.01879834,0.00016574,2]
[350324547,1737796239147,-325.98120166,0.00016574,2]
[350324548,1737796239159,-500.0,0.00016574,2]
[350324549,1737796239170,-500.0,0.00016574,2]
[350324550,1737796239179,-404.04446499,0.00016574,2]
[350324551,1737796239190,-95.95553501,0.00016574,2]
[350324552,1737796239199,-500.0,0.00016574,2]
[350324553,1737796239207,-400.15361427,0.00016574,2]
[350324554,1737796239219,-39.84638573,0.00016574,2]
[350324555,1737796239228,-500.0,0.00016574,2]
[350324556,1737796239237,-487.35407526,0.00016574,2]
[350324557,1737796239247,-500.0,0.00016574,2]
[350324558,1737796239256,-500.0,0.00016574,2]
[350324559,1737796239265,-500.0,0.00016574,2]
[350324560,1737796239274,-500.0,0.00016574,2]
[350324561,1737796239283,-500.0,0.00016574,2]
[350324562,1737796239292,-500.0,0.00016574,2]
[350324563,1737796239301,-224.82261286,0.00016574,2]
[350324566,1737796240045,-275.17738714,0.00016574,2]
[350324567,1737796240055,-368.71104131,0.00016574,2]
[350324568,1737796240066,-131.28895869,0.00016574,2]
[350324569,1737796240075,-500.0,0.00016574,2]
[350324570,1737796240084,-500.0,0.00016574,2]
[350324571,1737796240092,-500.0,0.00016574,2]
[350324572,1737796240101,-500.0,0.00016574,2]
[350324573,1737796240110,-500.0,0.00016574,2]
[350324574,1737796240119,-500.0,0.00016574,2]
[350324575,1737796240128,-367.48048048,0.00016711,2]
[350324576,1737796240137,-500.0,0.00016711,2]
[350324577,1737796240145,-500.0,0.00016711,2]
[350324578,1737796240156,-500.0,0.00016711,2]
[350324579,1737796240165,-500.0,0.00016711,2]
[350324580,1737796240176,-353.60577155,0.00016711,2]
[350324581,1737796240185,-37.06505496,0.00016711,2]
[350324582,1737796240196,-462.93494504,0.00016711,2]
[350324583,1737796240205,-224.0,0.00016711,2]
[350324584,1737796240214,-500.0,0.00016711,2]
[350324585,1737796240223,-500.0,0.00016711,2]
[350324586,1737796240231,-500.0,0.00016711,2]
[350324587,1737796240240,-500.0,0.00016711,2]
[350324588,1737796240251,-369.01229466,0.00016711,2]
[350324589,1737796240260,-500.0,0.00016711,2]
[350324590,1737796240268,-500.0,0.00016711,2]
[350324591,1737796240277,-500.0,0.00016711,2]
[350324592,1737796240286,-500.0,0.00016711,2]
[350324593,1737796240295,-500.0,0.00016711,2]
[350324594,1737796240303,-500.0,0.00016711,2]
[350324595,1737796240312,-500.0,0.00016711,2]
[350324596,1737796240321,-405.38590909,0.00016711,2]
[350324597,1737796240331,-500.0,0.00016711,2]
[350324598,1737796240340,-500.0,0.00016711,2]
[350324599,1737796240349,-500.0,0.00016711,2]
[350324600,1737796240358,-500.0,0.00016711,2]
[350324601,1737796240367,-500.0,0.00016711,2]
[350324602,1737796240376,-500.0,0.00016711,2]
[350324603,1737796240385,-500.0,0.00016711,2]
[350324604,1737796240394,-500.0,0.00016711,2]
[350324605,1737796240405,-500.0,0.00016711,2]
[350324606,1737796240413,-500.0,0.00016711,2]
[350324607,1737796240422,-500.0,0.00016711,2]
[350324608,1737796240431,-500.0,0.00016711,2]
[350324609,1737796240440,-500.0,0.00016711,2]
[350324610,1737796240449,-373.50339033,0.00016711,2]
[350324611,1737796240458,-500.0,0.00016711,2]
[350324612,1737796240467,-500.0,0.00016711,2]
[350324613,1737796240476,-354.22346344,0.00016711,2]
[350324614,1737796240487,-145.77653656,0.00016711,2]
[350324615,1737796240496,-126.21346344,0.00016711,2]
[350324616,1737796240521,-373.78653656,0.00016711,2]
[350324617,1737796240530,-335.48923394,0.00016711,2]
[350324618,1737796240541,-164.51076606,0.00016711,2]
[350324619,1737796240550,-322.94923394,0.00016711,2]
[350324620,1737796240561,-177.05076606,0.00016711,2]
[350324621,1737796240570,-457.93741731,0.00016711,2]
[350324622,1737796240579,-500.0,0.00016711,2]
[350324623,1737796240589,-500.0,0.00016711,2]
[350324624,1737796240598,-263.40181663,0.00016747,2]
[350324625,1737796240612,-10245.03548734,0.00016747,2]
[350324626,1737796240621,-1500.0,0.000168,6]
[350324627,1737796240630,-430.3178249,0.00016822,2]
[350324628,1737796240639,-240.92660429,0.00016846,2]
[350324629,1737796240648,-500.0,0.00016847,2]
[350324630,1737796240659,-640.93177437,0.00016847,2]
[350324631,1737796240668,-500.0,0.00016847,2]
[350324632,1737796240676,-500.0,0.00016847,2]
[350324633,1737796240685,-500.0,0.00016847,2]
[350324634,1737796240694,-500.0,0.00016847,2]
[350324635,1737796240703,-500.0,0.00016847,2]
[350324636,1737796240712,-500.0,0.00016847,2]
[350324637,1737796240721,-500.0,0.00016847,2]
[350324638,1737796240730,-500.0,0.00016847,2]
[350324639,1737796240739,-521.671335,0.00016847,2]
[350324640,1737796240748,-500.0,0.00016847,2]
[350324641,1737796240757,-500.0,0.00016847,2]
[350324642,1737796240766,-500.0,0.00016847,2]
[350324643,1737796240775,-345.402206,0.00016847,2]
[350324644,1737796240783,-500.0,0.00016847,2]
[350324645,1737796240792,-500.0,0.00016847,2]
[350324646,1737796240801,-500.0,0.00016847,2]
[350324647,1737796240811,-500.0,0.00016847,2]
[350324648,1737796240820,-500.0,0.00016847,2]
[350324649,1737796240829,-545.56,0.00016847,2]
[350324650,1737796240838,-500.0,0.00016847,2]
[350324651,1737796240847,-500.0,0.00016847,2]
[350324652,1737796240857,-519.24311767,0.00016847,2]
[350324653,1737796240866,-500.0,0.00016847,2]
[350324654,1737796240875,-500.0,0.00016847,2]
[350324655,1737796240884,-500.0,0.00016847,2]
[350324656,1737796240895,-560.29,0.00016847,2]
[350324657,1737796240905,-500.0,0.00016847,2]
[350324658,1737796240913,-500.0,0.00016847,2]
[350324659,1737796240922,-544.76,0.00016847,2]
[350324660,1737796240931,-500.0,0.00016847,2]
[350324661,1737796240940,-500.0,0.00016847,2]
[350324662,1737796240949,-500.0,0.00016847,2]
[350324663,1737796240958,-554.34,0.00016847,2]
[350324664,1737796240967,-500.0,0.00016847,2]
[350324665,1737796240976,-500.0,0.00016847,2]
[350324666,1737796240985,-500.0,0.00016847,2]
[350324667,1737796240994,-500.0,0.00016847,2]
[350324668,1737796241003,-500.0,0.00016847,2]
[350324669,1737796241012,-500.0,0.00016847,2]
[350324670,1737796241021,-500.0,0.00016847,2]
[350324671,1737796241029,-500.0,0.00016847,2]
[350324672,1737796241038,-500.0,0.00016847,2]
[350324673,1737796241047,-500.0,0.00016847,2]
[350324674,1737796241056,-580.78,0.00016847,2]
[350324675,1737796241065,-500.0,0.00016847,2]
[350324676,1737796241074,-500.0,0.00016847,2]
[350324677,1737796241083,-509.05979799,0.00016847,2]
[350324678,1737796241092,-620.42,0.00016847,2]
[350324679,1737796241102,-588.61,0.00016847,2]
[350324680,1737796241111,-500.0,0.00016847,2]
[350324681,1737796241120,-500.0,0.00016847,2]
[350324682,1737796241129,-783.36,0.00016847,2]
[350324683,1737796241138,-884.69,0.00016847,2]
[350324684,1737796241147,-699.93,0.00016847,2]
[350324685,1737796241157,-500.0,0.00016847,2]
[350324686,1737796241168,-1197.48,0.00016847,2]
[350324687,1737796241177,-860.48,0.00016847,2]
[350324688,1737796241185,-500.0,0.00016847,2]
[350324689,1737796241195,-1494.31,0.00016847,2]
[350324690,1737796241203,-549.43,0.00016847,2]
[350324691,1737796241213,-500.0,0.00016847,2]
[350324692,1737796241222,-500.0,0.00016847,2]
[350324693,1737796241231,-2829.05,0.00016847,2]
[350324694,1737796241240,-500.0,0.00016847,2]
[350324695,1737796241250,-500.0,0.00016847,2]
[350324696,1737796241259,-790.01,0.00016847,2]
[350324697,1737796241268,-500.0,0.00016847,2]
[350324698,1737796241277,-623.68,0.00016847,2]
[350324699,1737796241286,-523.87,0.00016847,2]
[350324700,1737796241295,-1432.61,0.00016847,2]
[350324701,1737796241304,-650.07,0.00016847,2]
[350324702,1737796241313,-500.0,0.00016847,2]
[350324703,1737796241322,-500.0,0.00016847,2]
[350324704,1737796241331,-822.46,0.00016847,2]
[350324705,1737796241340,-500.0,0.00016847,2]
[350324706,1737796241349,-1745.54,0.00016847,2]
[350324707,1737796241358,-1583.5,0.00016847,2]
[350324708,1737796241368,-1727.26,0.00016847,2]
[350324709,1737796241377,-500.0,0.00016847,2]
[350324710,1737796241386,-1422.86,0.00016847,2]
[350324711,1737796241394,-2235.73,0.00016847,2]
[350324712,1737796241404,-179.26578298,0.00016847,2]
[350324713,1737796241413,-2975.71,0.00016847,2]
[350324714,1737796241422,-500.0,0.00016847,2]
[350324715,1737796241431,-500.0,0.00016847,2]
[350324716,1737796241578,-500.0,0.00016847,2]
[350324717,1737796241604,-500.0,0.00016847,2]
[350324718,1737796241631,-500.0,0.00016847,2]
[350324719,1737796241662,-500.0,0.00016847,2]
[350324720,1737796241706,-824.33,0.00016847,2]
[350324721,1737796241752,-521.18,0.00016847,2]
[350324722,1737796241784,-500.0,0.00016847,2]
[350324723,1737796241793,-880.71,0.00016847,2]
[350324724,1737796241802,-2875.46,0.00016847,2]
[350324725,1737796241810,-500.0,0.00016847,2]
[350324726,1737796241819,-500.0,0.00016847,2]
[350324727,1737796241829,-2337.8,0.00016847,2]
[350324728,1737796241838,-500.0,0.00016847,2]
[350324729,1737796241846,-500.0,0.00016847,2]
[350324730,1737796241855,-500.0,0.00016847,2]
[350324731,1737796241864,-236.87670398,0.00016847,2]
[350324732,1737796241872,-816.94,0.00016847,2]
[350324733,1737796241881,-1743.36,0.00016847,2]
[350324734,1737796241890,-595.13,0.00016847,2]
[350324735,1737796241898,-500.0,0.00016847,2]
[350324736,1737796241908,-665.43,0.00016847,2]
[350324737,1737796241917,-500.0,0.00016847,2]
[350324738,1737796241926,-500.0,0.00016847,2]
[350324739,1737796241935,-500.0,0.00016847,2]
[350324740,1737796241943,-627.08782039,0.00016847,2]
[350324749,1737796243333,-317.92,0.00016847,2]
[350324759,1737796243387,-749.90217961,0.00016847,2]
[350324761,1737796243396,-740.47,0.00016847,2]
[350324763,1737796243406,-500.0,0.00016847,2]
[350324765,1737796243415,-500.0,0.00016847,2]
[350324767,1737796243424,-500.0,0.00016847,2]
[350324769,1737796243433,-500.0,0.00016847,2]
[350324770,1737796243442,-500.0,0.00016847,2]
[350324771,1737796243451,-500.0,0.00016847,2]
[350324772,1737796243460,-1321.01,0.00016847,2]
[350324773,1737796243469,-500.0,0.00016847,2]
[350324774,1737796243477,-500.0,0.00016847,2]
[350324775,1737796243486,-509.24,0.00016847,2]
[350324776,1737796243496,-500.0,0.00016847,2]
[350324777,1737796243505,-500.0,0.00016847,2]
[350324778,1737796243514,-500.0,0.00016847,2]
[350324779,1737796243523,-636.31,0.00016847,2]
[350324780,1737796243532,-1263.49,0.00016847,2]
[350324781,1737796243541,-605.98,0.00016847,2]
[350324782,1737796243549,-500.0,0.00016847,2]
[350324783,1737796243558,-500.0,0.00016847,2]
[350324784,1737796243567,-562.63,0.00016847,2]
[350324785,1737796243577,-500.0,0.00016847,2]
[350324786,1737796243586,-500.0,0.00016847,2]
[350324787,1737796243595,-500.0,0.00016847,2]
[350324788,1737796243603,-1884.48,0.00016847,2]
[350324789,1737796243612,-500.0,0.00016847,2]
[350324790,1737796243622,-500.0,0.00016847,2]
[350324791,1737796243631,-582.42,0.00016847,2]
[350324792,1737796243640,-500.0,0.00016847,2]
[350324793,1737796243649,-500.0,0.00016847,2]
[350324794,1737796243659,-710.08,0.00016847,2]
[350324795,1737796243667,-648.68,0.00016847,2]
[350324796,1737796243676,-808.2,0.00016847,2]
[350324797,1737796243686,-500.0,0.00016847,2]
[350324798,1737796243695,-826.8,0.00016847,2]
[350324799,1737796243704,-500.0,0.00016847,2]
[350324800,1737796243715,-637.18155895,0.00016847,2]
[350324801,1737796243724,-500.0,0.00016847,2]
[350324802,1737796243733,-913.47,0.00016847,2]
[350324803,1737796243742,-500.0,0.00016847,2]
[350324804,1737796243750,-500.0,0.00016847,2]
[350324805,1737796243759,-513.63,0.00016847,2]
[350324806,1737796243768,-5.43578251,0.00016847,2]
[350324807,1737796243787,-494.56421749,0.00016847,2]
[350324808,1737796243796,-2277.66,0.00016847,2]
[350324809,1737796243804,-284.34535761,0.00016847,2]
[350324810,1737796243815,-221.57464239,0.00016847,2]
[350324812,1737796243824,-173.6918832,0.00016847,2]
[350324813,1737796243833,-551.33,0.00016847,2]
[350324814,1737796243842,-769.24,0.00016847,2]
[350324815,1737796243850,-398.04263118,0.00016847,2]
[350324816,1737796243859,-240.65816063,0.00016847,2]
[350324817,1737796243873,-259.34183937,0.00016847,2]
[350324818,1737796243882,-349.19859053,0.00016847,2]
[350324819,1737796243894,-150.80140947,0.00016847,2]
[350324820,1737796243902,-825.12859053,0.00016847,2]
[350324824,1737796244090,-900.10574579,0.00016847,2]
[350324825,1737796244115,-800.0,0.00016847,2]
[350324826,1737796244130,-572.99321151,0.00016847,2]
[350324827,1737796246020,-330.49842,0.00016847,2]
[350324828,1737796246075,-1116.12403217,0.00016847,2]
[350324829,1737796246085,-500.0,0.00016847,2]
[350324830,1737796246093,-1404.5,0.00016847,2]
[350324831,1737796246102,-500.0,0.00016847,2]
[350324832,1737796246111,-435.31356382,0.00016847,2]
[350324833,1737796246129,-400.106984,0.00016847,2]
[350324834,1737796246394,-317.25945218,0.00016847,2]
[350324835,1737796246403,-500.0,0.00016847,2]
[350324836,1737796246414,-500.0,0.00016847,2]
[350324837,1737796246423,-500.0,0.00016847,2]
[350324838,1737796246432,-1055.14,0.00016847,2]
[350324839,1737796246441,-500.0,0.00016847,2]
[350324840,1737796246450,-602.0,0.00016847,2]
[350324841,1737796246458,-533.26277576,0.00016847,2]
[350324842,1737796246467,-703.24,0.00016847,2]
[350324843,1737796246476,-500.0,0.00016847,2]
[350324844,1737796246485,-500.0,0.00016847,2]
[350324845,1737796246493,-500.0,0.00016847,2]
[350324846,1737796246502,-500.0,0.00016847,2]
[350324847,1737796246511,-500.0,0.00016847,2]
[350324848,1737796246520,-608.19,0.00016847,2]
[350324849,1737796246529,-1386.16,0.00016847,2]
[350324850,1737796246538,-514.74777206,0.00016847,2]
[350324973,1737796994117,164.26,0.00010137,2]
[350324996,1737797353104,-477.688095,0.00011641,2]
[350324997,1737797353124,-1600.0,0.000117,4]
[350324998,1737797353143,-254.59349884,0.000117,2]
[350324999,1737797353163,-519.26640543,0.000118,4]
[350325031,1737797432223,-232.38829753,0.000117,2]
[350325033,1737797432233,-2680.73359457,0.000118,4]
[350325035,1737797432242,-254.59349882,0.000118,2]
[350325036,1737797432251,-150.0,0.00011899,2]
[350325037,1737797432260,-3893.11334896,0.000119,4]
[350325038,1737797432388,-386.09999985,0.000119,4]
[350325039,1737797432448,-520.78665119,0.000119,4]
[350325040,1737797432457,-254.59349882,0.000119,2]
[350325041,1737797432466,-4853.83377961,0.000119,2]
[350325042,1737797432477,-3249.99999999,0.000119,2]
[350325043,1737797432488,-992.18563616,0.000119,2]
[350325044,1737797432500,-774.34181465,0.000119,2]
[350325045,1737797432517,-17979.07991112,0.000119,2]
[350325046,1737797432532,-10021.28796644,0.000119,2]
[350325047,1737797432542,-500.0,0.00011973,2]
[350325048,1737797432551,-156.2090988,0.0001199,2]
[350325049,1737797432560,-1791.07546611,0.00011999,2]
[350325050,1737797432571,-66093.57959001,0.00011999,2]
[350325051,1737797432587,-469.1440006,0.00011999,2]
[350325052,1737797432599,-740.151992,0.00011999,2]
[350325053,1737797432610,-2113.28286315,0.00011999,2]
[350325054,1737797432621,-220803.32110062,0.00011999,2]
[350325055,1737797432632,-389268.81510589,0.00011999,2]
[350325056,1737797432641,-102046.48022943,0.00012,2]
[350325057,1737797432669,-275.710917,0.00012,2]
[350325058,1737797432681,-1535.79576675,0.00012,2]
[350325066,1737797438187,-340.64450932,0.00012,2]
[350325067,1737797438198,-3814.61122965,0.00012,2]
[350325068,1737797438245,-77352.27923027,0.00012,2]
[350325069,1737797438315,-12875.36842018,0.00012,2]
[350325070,1737797438494,-851127.42948402,0.00012,2]
[350325071,1737797438504,-448.77351762,0.00012129,2]
[350325072,1737797438514,-15030.54136315,0.00012229,2]
[350325073,1737797438526,-172.49,0.00012329,2]
[350325074,1737797438535,-165.0,0.00012447,2]
[350325075,1737797438545,-1000.0,0.00012521,2]
[350325076,1737797438556,-1000.0,0.0001262,2]
[350325077,1737797438567,-27849.44114153,0.00012671,2]
[350325078,1737797438577,-15030.5413631,0.00013059,2]
[350325080,1737797438587,-26399.18,0.00013195,2]
[350325082,1737797438597,-250.0,0.00013258,2]
[350325084,1737797438607,-1266.17,0.00013389,2]
[350325086,1737797438618,-27849.44114153,0.00013443,2]
[350325088,1737797438627,-1500.0,0.00013522,2]
[350325090,1737797438636,-15030.5413631,0.00013889,2]
[350325092,1737797438645,-1000.0,0.00014198,2]